Cogmind - Beta 16 @@@ ROGUE MODE // 2025.10.22 @ 00:09:20 Player: ChromeKnight Result: Core destroyed Performance ------------- Evolutions (9) 4500 Regions Visited (22) 4400 Robots Destroyed (191) 955 Value Destroyed (7575) 7575 Prototype IDs (41) 820 Alien Tech Used (0) 0 Bonus (5032) 5032 TOTAL SCORE: 23282 Bonus ------- High Alert Combat Kills 211 Follower Combat Kills 1713 Network Hubs Disabled 200 Aligned with FarCom 300 Built Enhanced Grunts 300 Met R17 at Cetus 500 Met R17 at Research 2000 Scanned by Researcher 500 Friendly Fire -692 Cogmind --------- Core Integrity 0/1600 Matter 228/300 Energy 39/100 System Corruption 12% Temperature Critical (1119) Movement Walking (69) Location -1/Access Parts ------- > --- POWER (2) -------- (None) > --- PROPULSION (4) --- Centrium Exoskeleton > --- UTILITY (15) ----- Armored Scrap Engine Advanced Cooling System Advanced Cooling System Large Storage Unit Improved Signal Interpreter Advanced Weapon Cycler Backup Plating VII Experimental Thermal Shield Advanced Force Field > --- WEAPON (4) ------- Cycling KE Linear Construct/C Molecular Scythe > --- INVENTORY (15) --- Improved Carbon-fiber Leg Improved Carbon-fiber Leg Improved Carbon-fiber Leg Advanced Power Amplifier Improved Sensor Array Improved Kinecellerator Advanced Shield Generator Hacking Suite Improved System Shield Advanced System Shield Experimental System Shield Improved System Restoration Module Backup Laser VII Peak State ------------ > --- POWER ------------ Cld. Quantum-Antimatter Reactor > --- PROPULSION ------- Centrium Exoskeleton > --- UTILITY ---------- Armored Scrap Engine Advanced Cooling System Advanced Cooling System Large Storage Unit Advanced Sensor Array Improved Signal Interpreter Advanced Weapon Cycler Advanced Phase Shifter Backup Plating VII Hardened Medium Armor Plating Layered Medium Armor Plating Graphene Brace Experimental Thermal Shield Advanced Force Field > --- WEAPON ----------- Cycling KE Linear Construct/C Kinetic Linear Construct/C Molecular Scythe > --- INVENTORY -------- Improved Carbon-fiber Leg Improved Carbon-fiber Leg Improved Carbon-fiber Leg Advanced Power Amplifier Improved Sensor Array Improved Kinecellerator Advanced Shield Generator Hacking Suite Improved System Shield Advanced System Shield Experimental System Shield Improved System Restoration Module Backup Laser VII [Rating: 189] Favorites ----------- Power Constructs Engine Improved Ion Engine Reactor Constructs Propulsion Constructs Treads Light Treads Leg Constructs Wheel Wheel Flight Unit Flying Fortress v7 Utility Armored Scrap Engine Device Armored Scrap Engine Storage High-capacity Storage Unit Processor Improved Signal Interpreter Hackware Improved Hacking Suite Protection Centrium Medium Armor Plating Weapon Improved Assault Rifle Energy Gun Medium Laser Energy Cannon Constructs Ballistic Gun Improved Assault Rifle Ballistic Cannon Constructs Launcher Precision Grenade Launcher Slashing Weapon Longsword +1 Build | -11 -10 -10 -9 -9 -9 -8 -8 -8 -8 -6 -6 -6 -6 -6 -5 -5 -5 -4 -3 -3 -2 -1 ------- Run | Yrd Mat Min Mat Min Exi Min Mat Sto Rec Fac Ext Cet Arc Hub Fac Was Fac Fac Res Tes Res Acc Slots Evolved 18 | . . . 2 . . . 2 . . 4 . . . . 2 . . 2 2 . 2 2 Power 1 | . . . . . . . . . . 1 . . . . . . . . . . . . Propulsion 2 | . . . 1 . . . 1 . . . . . . . . . . . . . . . Utility 13 | . . . 1 . . . 1 . . 2 . . . . 2 . . 2 1 . 2 2 Weapon 2 | . . . . . . . . . . 1 . . . . . . . . 1 . . . Parts Attached 97 | 5 12 . 12 1 1 . 7 4 1 18 . 5 3 2 1 . 2 4 5 8 3 3 Power 5 | 1 1 . 1 . . . . 1 . 1 . . . . . . . . . . . . Engine 5 | 1 1 . 1 . . . . 1 . 1 . . . . . . . . . . . . Core . | . . . . . . . . . . . . . . . . . . . . . . . Reactor . | . . . . . . . . . . . . . . . . . . . . . . . Propulsion 16 | 1 5 . 5 1 1 . 1 1 . 1 . . . . . . . . . . . . Treads 7 | 1 . . 4 1 1 . . . . . . . . . . . . . . . . . Leg . | . . . . . . . . . . . . . . . . . . . . . . . Wheel 7 | . 5 . 1 . . . . . . 1 . . . . . . . . . . . . Hover . | . . . . . . . . . . . . . . . . . . . . . . . Flight 2 | . . . . . . . 1 1 . . . . . . . . . . . . . . Utility 59 | 1 3 . 3 . . . 3 2 1 12 . 5 3 2 1 . 2 4 5 6 3 3 Device 28 | . . . . . . . 1 1 1 4 . 2 2 . 1 . 1 3 4 3 3 2 Storage 4 | 1 2 . . . . . . . . . . . . . . . 1 . . . . . Processor 9 | . 1 . 2 . . . 1 . . 4 . . . . . . . 1 . . . . Hackware 6 | . . . 1 . . . . 1 . . . . 1 2 . . . . 1 . . . Protection 12 | . . . . . . . 1 . . 4 . 3 . . . . . . . 3 . 1 Artifact . | . . . . . . . . . . . . . . . . . . . . . . . Weapon 17 | 2 3 . 3 . . . 3 . . 4 . . . . . . . . . 2 . . Energy Gun 3 | 2 . . . . . . . . . . . . . . . . . . . 1 . . Energy Cannon 1 | . . . . . . . . . . 1 . . . . . . . . . . . . Ballistic Gun 7 | . 3 . 3 . . . 1 . . . . . . . . . . . . . . . Ballistic Cannon . | . . . . . . . . . . . . . . . . . . . . . . . Launcher 2 | . . . . . . . 1 . . 1 . . . . . . . . . . . . Special Weapon . | . . . . . . . . . . . . . . . . . . . . . . . Impact Weapon . | . . . . . . . . . . . . . . . . . . . . . . . Slashing Weapon 4 | . . . . . . . 1 . . 2 . . . . . . . . . 1 . . Piercing Weapon . | . . . . . . . . . . . . . . . . . . . . . . . Special Melee Weapon . | . . . . . . . . . . . . . . . . . . . . . . . Unidentified Prototypes 8 | . 1 . . . . . 1 1 1 1 . 1 . . . . . . . 2 . . Parts Lost 27 | . 1 . 3 . . . . . . 9 . 1 . . . . . 1 2 1 . 9 Power 4 | . . . . . . . . . . 2 . . . . . . . . . . . 2 Propulsion 5 | . 1 . 1 . . . . . . 3 . . . . . . . . . . . . Utility 12 | . . . 1 . . . . . . 2 . 1 . . . . . 1 2 . . 5 Weapon 5 | . . . 1 . . . . . . 2 . . . . . . . . . . . 2 Highest Loss Streak 9 | . 1 . 1 . . . . . . 7 . 1 . . . . . 1 2 1 . 9 To Critical Strikes 2 | . . . . . . . . . . . . . . . . . . . 1 1 . . Average Backups 11 | . 8 18 19 19 19 16 16 19 13 9 5 4 4 4 2 3 8 14 11 13 13 12 Power . | . . 1 2 2 1 1 1 2 . . . . . . . . . . . . . . Propulsion 2 | . . 6 5 5 4 1 2 4 1 . . . . . . . 2 5 4 3 3 3 Utility 7 | . 4 7 9 10 10 10 9 10 9 8 5 4 4 4 2 3 5 9 7 10 9 8 Weapon 1 | . 2 4 2 2 2 4 2 2 2 . . . . . . . . . . . 1 1 Tool/Special . | . . . . . . . . . . . . . . . . . . . . . . . Unused Backups 61 | . 2 . 9 . 5 1 7 4 7 10 . . 3 . . . . . 2 1 . 10 Power 4 | . . . 2 . . . . . 2 . . . . . . . . . . . . . Propulsion 17 | . . . . . 4 . . 4 4 . . . . . . . . . 2 . . 3 Utility 33 | . 1 . 5 . 1 1 4 . 1 10 . . 3 . . . . . . 1 . 6 Weapon 7 | . 1 . 2 . . . 3 . . . . . . . . . . . . . . 1 Tool/Special . | . . . . . . . . . . . . . . . . . . . . . . . Average Slot Usage (%) 71 | . 91 100 98 100 100 100 85 71 64 55 53 57 63 66 69 70 66 67 65 70 72 75 Engine 4 | . 14 14 11 11 11 11 9 9 3 3 2 . . . 4 . . . . . . . Reactor 1 | . . . . . . . . . . . . 4 6 6 . 4 5 5 4 4 4 4 Treads 5 | . 7 . 24 33 33 33 21 . . . . . . . . . . . . . . . Leg 3 | . . . . . . . . . 3 5 4 6 6 6 4 . . 2 4 4 4 4 Wheel 1 | . 12 28 7 . . . . . . . . . . . . . . . . . . . Device 15 | . . . . . . . 4 1 5 16 20 19 21 11 22 23 24 26 27 28 33 35 Storage 5 | . 14 14 11 11 11 11 9 9 9 2 . . . . . . 3 5 4 4 4 4 Processor 8 | . 13 14 15 22 22 22 13 9 9 10 13 6 . . . . . 4 4 4 4 4 Hackware 1 | . . . 6 . . . . 8 3 . . . 1 14 5 5 . . . . . . Protection 4 | . . . . . . . 8 7 3 2 . 6 9 6 10 11 11 10 9 8 8 11 Energy Gun 2 | . 1 . . . . . . . . 2 3 . 3 6 6 13 7 5 3 2 2 . Energy Cannon 1 | . . . . . . . . . . 1 . . 5 6 4 . . . . 2 2 6 Ballistic Gun 6 | . 25 28 21 22 22 22 9 . . 1 1 11 6 6 4 . . . . . . . Ballistic Cannon 1 | . . . . . . . . . . . 1 . . . . 3 4 5 3 2 2 . Launcher 1 | . . . . . . . 4 9 9 2 . . . . . . . . . . . . Slashing Weapon 1 | . . . . . . . 4 9 9 2 . . . . . . . . . 3 4 4 Peak Build Rating 189 | 5 15 15 21 20 25 25 66 67 78 80 86 108 116 113 123 125 125 135 140 150 165 189 Average Rating 83 | 4 12 15 18 20 21 25 39 64 57 69 81 99 110 110 119 123 123 130 137 142 163 185 On Entrance 76 | . 5 15 15 20 20 25 25 66 67 56 80 86 108 113 110 118 125 125 124 140 148 165 Avg Prop Armor Cover (%) 11 | . 11 . 11 . . . . . . 9 . . . . . . . . . . . . Naked Turns . | . . . . . . . . . . . . . . . . . . . . . . . Heaviest Build 120 | 14 51 51 53 53 53 53 61 61 58 73 23 75 82 75 83 73 102 118 118 120 112 112 Greatest Support 175 | 20 26 26 60 60 60 60 60 50 50 47 85 90 90 90 113 113 113 113 134 134 134 175 Greatest Overweight (x) 24 | 2 4 1 1 . . . 1 19 16 24 . . . . . . . 1 1 . . . Average Overweight (x) . | . . 1 . . . . . 1 1 . . . . . . . . . . . . . Largest Inventory Capacity 25 | 8 25 20 20 20 20 20 20 20 20 20 5 5 5 5 5 5 15 15 15 15 15 15 Average Capacity 13 | 7 11 20 20 20 20 20 20 20 20 11 5 5 5 5 5 5 13 15 15 15 15 15 Most Carried 20 | 1 18 19 20 20 20 20 20 20 20 20 5 5 5 5 3 4 13 15 14 15 14 13 Average Carried 12 | . 8 18 19 19 19 20 19 19 14 10 5 4 4 4 2 3 8 14 11 13 13 12 Final Capacity 20 | 8 20 20 20 20 20 20 20 20 20 5 5 5 5 5 5 5 15 15 15 15 15 15 Final Carried 20 | 1 18 19 19 20 20 20 20 20 13 5 5 5 5 3 3 4 13 14 12 15 14 13 Scrap Engine Consumption 260 | . . . . . . . . . 20 62 32 12 5 3 21 18 12 9 26 20 10 10 Constructs Created 9 | . . . . . . . . . 2 5 . 1 1 . . . . . . . . . Constructs Modified 100 | . . . . . . . . . 5 18 14 3 2 2 7 8 4 6 13 7 4 7 Class Distribution -------------------- 33% | Construct 17% | Mutant 16% | Scavenger-Mutant 9% | Commander-Mutant 9% | Commander-Construct 7% | Scavenger-Construct 3% | Tank Dominant Class ---------------- Mutant | -10/Materials Mutant | -10/Mines Scavenger-Mutant | -9/Materials Scavenger-Mutant | -9/Mines Scavenger-Mutant | -9/Exiles Scavenger-Mutant | -8/Mines Scavenger-Mutant | -8/Materials Mutant | -8/Storage Commander-Mutant | -8/Recycling Mutant | -6/Factory Commander-Construct | -6/Extension Commander-Construct | -6/Cetus Construct | -6/Archives Hacker-Construct | -6/Hub_04(d) Scavenger-Construct | -5/Factory Scavenger-Construct | -5/Waste Construct | -5/Factory Construct | -4/Factory Construct | -3/Research Construct | -3/Testing Construct | -2/Research Tank | -1/Access Resources | -11 -10 -10 -9 -9 -9 -8 -8 -8 -8 -6 -6 -6 -6 -6 -5 -5 -5 -4 -3 -3 -2 -1 ----------- Run | Yrd Mat Min Mat Min Exi Min Mat Sto Rec Fac Ext Cet Arc Hub Fac Was Fac Fac Res Tes Res Acc Matter Collected 3672 | 250 465 . 364 52 . 10 70 10 70 433 95 103 149 181 380 73 132 113 182 308 146 86 Remotely . | . . . . . . . . . . . . . . . . . . . . . . . Salvage Created 9845 | 80 823 . 842 145 . . 167 . 512 965 957 92 380 817 981 301 586 118 361 1018 260 440 Parts 475 | 1 54 . 56 14 . . 12 . 21 45 40 3 20 31 39 8 16 7 11 53 17 27 Haulers Intercepted 8 | . 1 . 1 . . . . . . 1 . . . 2 1 . 1 . . 1 . . Recyclers Shooed 5 | . 1 . . . . . . 1 . . 1 . . . 1 . . . . . . 1 Parts Field Recycled . | . . . . . . . . . . . . . . . . . . . . . . . Retrieved Matter . | . . . . . . . . . . . . . . . . . . . . . . . Parts Self-Destructed . | . . . . . . . . . . . . . . . . . . . . . . . Prevented . | . . . . . . . . . . . . . . . . . . . . . . . Parts Restored . | . . . . . . . . . . . . . . . . . . . . . . . Kills | -11 -10 -10 -9 -9 -9 -8 -8 -8 -8 -6 -6 -6 -6 -6 -5 -5 -5 -4 -3 -3 -2 -1 ------- Run | Yrd Mat Min Mat Min Exi Min Mat Sto Rec Fac Ext Cet Arc Hub Fac Was Fac Fac Res Tes Res Acc Combat Hostiles Destroyed 113 | . 14 . 11 5 . . 3 . . 12 14 2 3 8 14 . 2 1 5 9 4 6 Melee 7 | . . . . . . . 3 . . 3 . . . . . . . . . . 1 . Guns 71 | . 14 . 11 5 . . . . . 4 13 2 2 4 9 . 2 . 1 3 . 1 Cannons 25 | . . . . . . . . . . 2 1 . 1 2 1 . . 1 3 6 3 5 AOE 8 | . . . . . . . . . . 3 . . . 1 4 . . . . . . . Classes Destroyed 20 | 1 7 . 2 1 . . . . 1 2 1 . . . 2 . . . . 2 1 . Worker 9 | . 2 . 1 . . . . . . 4 . . . 2 . . . . . . . . Builder 8 | . . . . . . . . . 2 3 1 . . 1 1 . . . . . . . Tunneler 4 | . 1 . 1 . . . . . . 1 . . . 1 . . . . . . . . Hauler 8 | . 1 . 1 . . . . . . 1 . . . 2 1 . 1 . . 1 . . Recycler 19 | 1 4 . 2 . . . . . 6 1 1 . . . . . 2 . . 2 . . Mechanic 2 | . . . 1 . . . . . . . . . . . . . . . . 1 . . Operator 12 | . 1 . 2 . . . 1 . . . . . 5 . . . . 2 . . 1 . Watcher 13 | . 3 . 1 . . . . . . 2 . . . 1 2 . 3 . . 1 . . Swarmer 18 | . 9 . . 3 . . . . . . 3 . . . . . . . . 3 . . Cutter 2 | . . . . . . . . . . . . . . . . . . . . . 2 . Grunt 43 | . 5 . 7 1 . . 3 . . 4 5 . . 4 8 . 1 . 5 . . . Brawler 2 | . . . . . . . . . . . . . . . 2 . . . . . . . Duelist 1 | . . . . 1 . . . . . . . . . . . . . . . . . . Researcher 2 | . . . . . . . . . . . . . . . . . . . . 2 . . Sentry 19 | . . . 4 . . . . . . 1 5 . 3 3 1 . . 1 . . 1 . Hunter 6 | . . . . . . . . . . . . . . . 1 . 1 . . 2 . 2 Programmer 15 | . . . . . . . . . . 5 . . . 1 2 . . . . 2 1 4 Heavy 2 | . . . . . . . . . . 2 . . . . . . . . . . . . Q-Series 2 | . . . . . . . . . . . . . . . . . . . . 2 . . Behemoth 1 | . . . . . . . . . . . 1 . . . . . . . . . . . Cetus Guard 2 | . . . . . . . . . . . . 2 . . . . . . . . . . Best Kill Streak 11 | 1 11 . 6 3 . . 4 . 6 4 4 2 3 6 3 . 2 1 4 4 2 4 Combat Bots Only 5 | . 5 . 3 3 . . 3 . . 3 3 2 2 2 3 . 1 1 4 3 2 4 Max Kills in Single Turn 5 | 1 2 . 1 1 . . 1 . 1 3 1 1 2 5 2 . 2 1 1 2 1 1 Gunslinging 1 | . 1 . . . . . . . . . . . . . . . . . . . . . Exploded 2 | . . . . . . . . . . 1 . . . 1 2 . . . . . . . Melee 1 | . . . . . . . 1 . . 1 . . . . . . . . . . 1 . Uniques/NPCs Destroyed 1 | . . . . . . . . . . . . 1 . . . . . . . . . . A7 (-6/Cetus) Combat | -11 -10 -10 -9 -9 -9 -8 -8 -8 -8 -6 -6 -6 -6 -6 -5 -5 -5 -4 -3 -3 -2 -1 -------- Run | Yrd Mat Min Mat Min Exi Min Mat Sto Rec Fac Ext Cet Arc Hub Fac Was Fac Fac Res Tes Res Acc Hostile Shots Fired 1198 | . 62 . 36 13 . . 4 . . 115 195 9 11 126 98 . 15 48 97 150 34 185 Missed 377 | . 12 . 8 1 . . 3 . . 22 77 3 2 40 20 . 3 16 30 55 8 77 Hits 821 | . 50 . 28 12 . . 1 . . 93 118 6 9 86 78 . 12 32 67 95 26 108 Melee 12 | . . . . 2 . . . . . . . . . 1 2 . . . . . 7 . Projectile 809 | . 50 . 28 10 . . 1 . . 93 118 6 9 85 76 . 12 32 67 95 19 108 AOE 22 | . . . . . . . . . . 1 . . . . . . . . 1 19 . 1 Critical Strikes 30 | . 1 . 2 . . . . . . 9 . 3 . 1 2 . 1 . 2 4 3 2 Actively Blocked 4 | . . . . . . . . . . . . . . . . . . . . . 3 1 Part Disruptions 3 | . . . . . . . . . . 2 . . . . . . . 1 . . . . Damage Taken 12818 | . 457 . 368 151 . . 14 . 16 2506 988 344 92 1112 836 . 112 435 742 675 317 3653 Core 2968 | . 78 . 41 31 . . . . . 285 139 35 . 379 38 . . 1 46 44 15 1836 Absorbed by Shields 3942 | . . . . . . . . . . . 282 14 97 254 776 . 120 392 438 720 325 524 Ignored by Resistances 536 | . . . . . . . . . . . . . . . . . . . 56 393 87 . Regen/Repaired (Parts) 3528 | . . . 55 . . . . . 35 478 650 138 12 122 519 85 205 74 531 203 105 316 Core Remaining (%) 81 | 100 . 68 . . . 82 . . 100 . . . . 1 . . 96 99 . 93 98 . Volleys Fired 519 | 5 50 1 42 7 . . . . . 52 55 10 36 39 44 7 22 37 22 45 14 31 Largest 3 | 2 2 2 2 2 . . . . . 1 1 2 3 3 3 3 3 2 2 2 2 2 Hottest 551 | 90 46 46 46 46 . . . . . 100 74 57 122 122 206 206 201 203 203 551 442 442 Shots Fired 901 | 10 100 2 83 14 . . . . . 50 55 18 79 95 121 21 41 42 44 78 16 32 Gun 613 | 10 100 2 83 14 . . . . . 21 50 18 49 67 86 21 24 6 22 30 3 7 Cannon 277 | . . . . . . . . . . 18 5 . 30 28 35 . 17 36 22 48 13 25 Launcher 11 | . . . . . . . . . . 11 . . . . . . . . . . . . Special . | . . . . . . . . . . . . . . . . . . . . . . . Kinetic 582 | . 100 2 83 14 . . . . . 5 25 18 49 67 81 7 22 36 . 35 13 25 Thermal 222 | 5 . . . . . . . . . 34 30 . 30 28 39 7 . . 11 28 3 7 Explosive 11 | . . . . . . . . . . 11 . . . . . . . . . . . . Electromagnetic 86 | 5 . . . . . . . . . . . . . . 1 7 19 6 33 15 . . Robot Hit Streak 25 | 3 14 1 25 16 . . . . . 19 19 9 14 8 12 13 5 9 4 5 5 5 Robot Miss Streak 7 | 2 5 1 2 . . . . . . 4 7 4 7 6 5 1 2 2 3 7 4 5 Penetration Max 1 | . . . . . . . . . . . 1 . 1 1 1 . 1 . . . . . Secondary Targets 3 | . 2 . 1 . . . . . . . . . . . . . . . . . . . Max Gunslinging Chain 1 | . 1 . 1 . . . . . . . . . . . . . . . . . . . Shots Hit Robots 587 | 5 59 1 65 12 . . 5 1 9 50 54 11 50 45 77 16 20 7 25 49 10 16 Core Hits 338 | 2 28 . 32 7 . . 4 . 5 28 64 12 24 25 38 3 9 9 10 28 5 5 Critical Kills 10 | . . . 1 . . . . . . . . . 2 1 3 . 2 . 1 . . . Critical Parts Destroyed 15 | . 2 . . . . . . . . . . . 2 3 6 . . . . 2 . . Critical Strikes 44 | 2 2 . 1 . . . 1 . . 6 5 . 4 4 9 1 2 . 1 2 1 3 Burn 12 | 2 . . . . . . . . . 5 5 . . . . . . . . . . . Destroy 26 | . 2 . 1 . . . . . . . . . 4 4 9 1 2 . 1 2 . . Blast 3 | . . . . . . . . . . . . . . . . . . . . . . 3 Sever 3 | . . . . . . . 1 . . 1 . . . . . . . . . . 1 . Melee Attacks 78 | . . . . . . . 5 4 10 21 . . . . . . . . . 15 6 17 Impact . | . . . . . . . . . . . . . . . . . . . . . . . Slashing 78 | . . . . . . . 5 4 10 21 . . . . . . . . . 15 6 17 Piercing . | . . . . . . . . . . . . . . . . . . . . . . . Sneak Attacks 17 | . . . . . . . 1 1 9 3 . . . . . . . . . 3 . . Combat Hostiles 1 | . . . . . . . . . . . . . . . . . . . . 1 . . Follow-up Attacks . | . . . . . . . . . . . . . . . . . . . . . . . Damage Inflicted 22412 | 67 918 13 944 189 . . 297 108 833 2410 1848 379 1238 1863 3112 577 807 441 1144 2721 904 1599 Guns 9358 | 67 918 13 927 189 . . . . . 494 1694 379 762 756 1361 577 411 125 263 311 . 111 Cannons 7747 | . . . . . . . . . . 553 154 . 476 440 620 . 359 212 881 1866 698 1488 Explosions 2667 | . . . . . . . . . . 701 . . . 650 1131 . . 104 . 81 . . Melee 2549 | . . . . . . . 297 108 833 662 . . . . . . . . . 463 186 . Ramming 91 | . . . 17 . . . . . . . . . . 17 . . 37 . . . 20 . Kinetic 10684 | . 918 13 927 189 . . . . . 80 807 379 762 756 1352 116 359 212 . 1628 698 1488 Thermal 5967 | 39 . . . . . . . . . 1084 1041 . 476 440 1676 323 . . 429 348 . 111 Explosive 709 | . . . . . . . . . . 584 . . . . 44 . . . . 81 . . Electromagnetic 2412 | 28 . . . . . . . . . . . . . 650 40 138 411 229 715 201 . . Impact . | . . . . . . . . . . . . . . . . . . . . . . . Slashing 2549 | . . . . . . . 297 108 833 662 . . . . . . . . . 463 186 . Piercing . | . . . . . . . . . . . . . . . . . . . . . . . Highest Corruption 12 | . . . . . . . . . . 8 3 3 3 1 2 2 2 4 . 4 . 12 Average Corruption 3 | . . . . . . . . . . 5 3 3 2 1 1 2 2 3 . 2 . 5 Corruption Purged 8 | . . . . . . . . . . 5 . . 3 . . . . . . . . . Corruption Blocked . | . . . . . . . . . . . . . . . . . . . . . . . Effects 134 | . . . . . . . . . . 62 21 7 2 . 9 9 4 11 . 7 . 2 Message Errors 36 | . . . . . . . . . . 20 3 1 1 . . 4 2 2 . 1 . 2 Matter Fused 30 | . . . . . . . . . . 12 5 4 . . 3 1 1 2 . 2 . . Heat Flow Errors 14 | . . . . . . . . . . 2 6 . 1 . 1 2 1 . . 1 . . Energy Discharges 14 | . . . . . . . . . . 5 3 1 . . 3 1 . 1 . . . . Parts Rejected 3 | . . . . . . . . . . 1 1 . . . 1 . . . . . . . Parts Fused 2 | . . . . . . . . . . 2 . . . . . . . . . . . . Data Loss (minor) 25 | . . . . . . . . . . 14 2 1 . . 1 . . 5 . 2 . . Data Loss (major) 3 | . . . . . . . . . . 2 . . . . . . . 1 . . . . Alerts 5 | . . . . . . . . . . 2 1 . . . . 1 . . . 1 . . Weapon Failures 2 | . . . . . . . . . . 2 . . . . . . . . . . . . Overload Shots 4 | . . . . . . . . . . . . . . . . . . . . 2 . 2 Effects 2 | . . . . . . . . . . . . . . . . . . . . 1 . 1 Heat Surge 2 | . . . . . . . . . . . . . . . . . . . . 1 . 1 Overflow Damage 1249 | . . . . . . . . . 209 201 . . 7 6 179 . 22 . 25 151 81 368 Projectiles 618 | . . . . . . . . . . 78 . . 7 6 . . 22 . 25 31 81 368 Explosions 251 | . . . . . . . . . . 62 . . . . 179 . . . . 10 . . Melee 380 | . . . . . . . . . 209 61 . . . . . . . . . 110 . . Knockbacks 27 | . . . . . . . . . . . . . . . . . 1 . . 17 1 8 Impact . | . . . . . . . . . . . . . . . . . . . . . . . Kinetic 25 | . . . . . . . . . . . . . . . . . 1 . . 17 1 6 Secondary 2 | . . . . . . . . . . . . . . . . . . . . . . 2 Self-Inflicted Damage 370 | . . . . . . . . . . 40 . . . 101 193 . 18 18 . . . . Shots 7 | . . . . . . . . . . 1 . . . 1 4 . . 1 . . . . Rammed 3 | . . . 2 . . . . . . . . . . . . . 1 . . . . . Targets Rammed 5 | . . . 2 . . . . . . . . . . 1 . . 1 . . . 1 . Kicked 2 | . . . . . . . . . . . . . . 1 . . . . . . 1 . Crushed . | . . . . . . . . . . . . . . . . . . . . . . . Highest Temperature 1537 | 90 298 . 20 . . . . . . 139 399 . 209 597 24 73 224 317 437 670 612 1537 Average Temperature 168 | 40 97 . 8 . . . . . . 33 126 . 40 176 24 39 81 121 141 189 271 585 Received Heat Transfer 1455 | . 72 . 207 30 . . 9 . . 267 286 . 16 232 117 . 12 . 107 76 24 . Effects 73 | . 1 . . . . . . . . . 5 . . 7 . . . 3 1 8 8 40 Shutdowns 14 | . . . . . . . . . . . 1 . . 2 . . . . 1 2 1 7 Energy Bleed 9 | . 1 . . . . . . . . . 2 . . . . . . 1 . 2 . 3 Interference 12 | . . . . . . . . . . . 2 . . 1 . . . 2 . 3 . 4 Matter Decay 4 | . . . . . . . . . . . . . . 2 . . . . . . . 2 Short Circuit 2 | . . . . . . . . . . . . . . . . . . . . . 1 1 Damage (minor) 6 | . . . . . . . . . . . . . . . . . . . . 1 . 5 Damage (major) 17 | . . . . . . . . . . . . . . . . . . . . . 6 11 Damage (core) 9 | . . . . . . . . . . . . . . 2 . . . . . . . 7 Siege Activations . | . . . . . . . . . . . . . . . . . . . . . . . Martial Activations . | . . . . . . . . . . . . . . . . . . . . . . . Shielding Activations . | . . . . . . . . . . . . . . . . . . . . . . . Robots Disrupted . | . . . . . . . . . . . . . . . . . . . . . . . Combat Hostiles . | . . . . . . . . . . . . . . . . . . . . . . . Robots Corrupted 3 | . . . . . . . . . . . . . . 1 . 1 . . 1 . . . Combat Hostiles 3 | . . . . . . . . . . . . . . 1 . 1 . . 1 . . . Parts Fried 11 | . . . . . . . . . . 1 . . . 2 . 1 1 2 3 1 . . Impact Corruptions . | . . . . . . . . . . . . . . . . . . . . . . . Robots Melted . | . . . . . . . . . . . . . . . . . . . . . . . Combat Hostiles . | . . . . . . . . . . . . . . . . . . . . . . . Parts Melted 2 | . . . . . . . . . . 2 . . . . . . . . . . . . Heat Transferred 3171 | 259 . . . . . . . . . 1106 450 . . . 655 170 . . . 420 . 111 Parts Sabotaged . | . . . . . . . . . . . . . . . . . . . . . . . Parts Stolen . | . . . . . . . . . . . . . . . . . . . . . . . Parts Stripped . | . . . . . . . . . . . . . . . . . . . . . . . Power Chain Reactions . | . . . . . . . . . . . . . . . . . . . . . . . Alert | -11 -10 -10 -9 -9 -9 -8 -8 -8 -8 -6 -6 -6 -6 -6 -5 -5 -5 -4 -3 -3 -2 -1 ------- Run | Yrd Mat Min Mat Min Exi Min Mat Sto Rec Fac Ext Cet Arc Hub Fac Was Fac Fac Res Tes Res Acc Maximum Alert Level 3 | . 1 . . . . . . . . 1 3 2 . 2 3 1 . . . 2 1 . Low Security (%) 79 | 100 67 100 100 100 . 100 100 100 100 91 44 . 100 80 . 63 100 100 100 29 37 100 Level 1 14 | . 32 . . . . . . . . 8 45 35 . . 55 36 . . . 51 62 . Level 2 5 | . . . . . . . . . . . 7 64 . 19 36 . . . . 19 . . Level 3 . | . . . . . . . . . . . 1 . . . 7 . . . . . . . Level 4 . | . . . . . . . . . . . . . . . . . . . . . . . Level 5 . | . . . . . . . . . . . . . . . . . . . . . . . High Security . | . . . . . . . . . . . . . . . . . . . . . . . Max Security . | . . . . . . . . . . . . . . . . . . . . . . . Peak Influence 985 | . 262 85 97 70 . . 65 15 78 350 706 526 163 499 985 341 70 77 97 482 270 163 Initial 384 | . . 85 . 5 . . . 7 . 350 88 384 141 13 236 341 . 30 8 . 270 125 Average 107 | . 96 36 18 11 . . 12 1 16 123 233 429 90 102 471 150 10 14 4 254 213 54 Influence Increases 8072 | 5 440 . 377 120 . . 87 23 319 1185 1384 357 178 708 1067 . 160 174 133 877 204 274 Destroy 0b10 Robot/C 3140 | . 280 . 220 100 . . 60 . 40 460 720 160 80 160 280 . 40 20 100 220 80 120 Destroy 0b10 Robot/NC 400 | 5 60 . 45 . . . 5 . 40 60 25 10 25 35 20 . 30 10 . 25 5 . Destroy Leader 646 | . 58 . 74 20 . . 10 . . 156 64 . . 56 66 . 8 10 10 54 20 40 Allied During Kill 688 | . . . . . . . . . 52 39 410 167 20 . . . . . . . . . Successful Hack 252 | . 12 . 37 . . . 12 8 6 11 70 . . 13 . . . 5 . 51 27 . Select Force Hacks 180 | . . . . . . . . . 180 . . . . . . . . . . . . . Disable Machine 915 | . . . . . . . . 15 . 15 15 . 45 285 240 . 60 75 . 120 30 15 Destroy Structure 856 | . . . 1 . . . . . 1 64 20 20 8 129 266 . 22 54 8 152 27 84 Advance Influence 350 | . . . . . . . . . . 350 . . . . . . . . . . . . Partial Spotted 60 | . 15 . . . . . . . . . . . . 15 30 . . . . . . . Lose Combat Pursuer 585 | . 15 . . . . . . . . 30 60 . . 15 165 . . . 15 255 15 15 Influence Decreases 8047 | 5 221 219 363 134 . . 70 40 319 1005 878 690 492 263 574 977 98 219 150 395 476 459 Entered New Map 2007 | . . 134 . 9 . . . 10 . . 92 302 212 26 248 636 . 32 9 . 212 85 Time Decay 4842 | 5 211 85 333 125 . . 70 30 299 638 506 198 140 236 326 341 98 177 121 365 254 284 Lost Part 260 | . 10 . 30 . . . . . . 80 . 10 . . . . . 10 20 10 . 90 Lost Ally 938 | . . . . . . . . . 20 287 280 180 140 1 . . . . . 20 10 . Squads Dispatched 44 | . 1 . 2 . . . 1 . . 11 3 . . 4 3 . 2 2 3 5 3 4 Investigation 5 | . . . . . . . . . . 1 1 . . . . . . . 2 . . 1 Extermination 16 | . . . . . . . . . . 6 . . . 1 1 . 1 1 . 3 1 2 Reinforcement 21 | . 1 . 2 . . . 1 . . 4 2 . . 1 2 . 1 1 1 2 2 1 Assault 1 | . . . . . . . . . . . . . . 1 . . . . . . . . Garrison 1 | . . . . . . . . . . . . . . 1 . . . . . . . . Intercept . | . . . . . . . . . . . . . . . . . . . . . . . Searches Triggered . | . . . . . . . . . . . . . . . . . . . . . . . Construction Impeded 2 | . . . . . . . . . . . 1 . . . 1 . . . . . . . Haulers Reinforced 4 | . . . . . . . . . . 2 . . . 1 . . 1 . . . . . Active Scanning Responses . | . . . . . . . . . . . . . . . . . . . . . . . Cargo Convoy Interrupts 1 | . . . . . . . . . . 1 . . . . . . . . . . . . Stealth | -11 -10 -10 -9 -9 -9 -8 -8 -8 -8 -6 -6 -6 -6 -6 -5 -5 -5 -4 -3 -3 -2 -1 --------- Run | Yrd Mat Min Mat Min Exi Min Mat Sto Rec Fac Ext Cet Arc Hub Fac Was Fac Fac Res Tes Res Acc Distress Signals 26 | . 1 . . . . . . . 1 5 3 2 . 2 . . . . 9 2 . 1 Communications Jammed . | . . . . . . . . . . . . . . . . . . . . . . . Distress Signals . | . . . . . . . . . . . . . . . . . . . . . . . Times Spotted 271 | . 27 1 15 6 . . 4 . 4 17 41 5 20 23 30 . 5 6 15 28 11 13 Peak Tracking Total 8 | . 4 1 2 2 . . 1 . 2 3 8 4 2 7 7 . 1 4 8 7 4 6 Tactical Retreats 22 | . 1 . . . . . . . . 2 4 . . 1 4 . . . 1 7 1 1 Traps | -11 -10 -10 -9 -9 -9 -8 -8 -8 -8 -6 -6 -6 -6 -6 -5 -5 -5 -4 -3 -3 -2 -1 ------- Run | Yrd Mat Min Mat Min Exi Min Mat Sto Rec Fac Ext Cet Arc Hub Fac Was Fac Fac Res Tes Res Acc Traps Triggered 11 | . 1 . . . . . . . . 1 . . . . 1 . 1 2 3 2 . . Indirectly . | . . . . . . . . . . . . . . . . . . . . . . . Trap Hack Attempts . | . . . . . . . . . . . . . . . . . . . . . . . Triggered . | . . . . . . . . . . . . . . . . . . . . . . . Disarmed . | . . . . . . . . . . . . . . . . . . . . . . . Reprogrammed . | . . . . . . . . . . . . . . . . . . . . . . . Reused . | . . . . . . . . . . . . . . . . . . . . . . . Traps Extracted . | . . . . . . . . . . . . . . . . . . . . . . . Installed . | . . . . . . . . . . . . . . . . . . . . . . . Triggered . | . . . . . . . . . . . . . . . . . . . . . . . Machines | -11 -10 -10 -9 -9 -9 -8 -8 -8 -8 -6 -6 -6 -6 -6 -5 -5 -5 -4 -3 -3 -2 -1 ---------- Run | Yrd Mat Min Mat Min Exi Min Mat Sto Rec Fac Ext Cet Arc Hub Fac Was Fac Fac Res Tes Res Acc Machines Disabled 62 | . . . . . . . . 1 . 1 1 . 3 19 16 . 4 5 . 9 2 1 Max in Single Turn 16 | . . . . . . . . 1 . 1 . . 1 16 6 . 2 3 . 2 1 1 Garrison Access 5 | . . . . . . . . . . 1 . . . 1 . . . . 2 1 . . Network Hub 1 | . . . . . . . . . . . . . . 1 . . . . . . . . Machines Repaired . | . . . . . . . . . . . . . . . . . . . . . . . Machines Dismantled . | . . . . . . . . . . . . . . . . . . . . . . . Machines Sabotaged . | . . . . . . . . . . . . . . . . . . . . . . . Overloaded Fab Kills . | . . . . . . . . . . . . . . . . . . . . . . . Hacking | -11 -10 -10 -9 -9 -9 -8 -8 -8 -8 -6 -6 -6 -6 -6 -5 -5 -5 -4 -3 -3 -2 -1 --------- Run | Yrd Mat Min Mat Min Exi Min Mat Sto Rec Fac Ext Cet Arc Hub Fac Was Fac Fac Res Tes Res Acc Machines Accessed 70 | . 3 . 6 . 1 . 3 4 11 9 9 . 1 6 1 . 1 2 2 5 4 2 Terminals 40 | . 3 . 4 . . . 3 4 3 4 8 . . 5 . . . . . 2 3 1 Fabricators 8 | . . . . . . . . . . 3 . . . . . . 1 1 . 2 1 . Repair Stations 5 | . . . 1 . . . . . . 1 1 . . . . . . . 1 . . 1 Recycling Units 6 | . . . . . . . . . 6 . . . . . . . . . . . . . Scanalyzers 3 | . . . 1 . . . . . . . . . . . 1 . . 1 . . . . Garrison Access 4 | . . . . . . . . . . 1 . . . 1 . . . . 1 1 . . Total Hacks 206 | . 8 . 23 . 1 . 7 7 40 16 16 . 25 19 6 . 1 8 5 9 9 6 Successful 128 | . 2 . 15 . 1 . 5 4 33 7 9 . 25 9 5 . . 5 1 5 2 . Failed 77 | . 6 . 7 . . . 2 3 7 9 7 . . 10 1 . 1 3 4 4 7 6 Catastrophic 23 | . 3 . . . . . . 1 1 6 2 . . 3 . . . . 2 1 1 3 Database Lockouts 1 | . . . 1 . . . . . . . . . . . . . . . . . . . Manual 79 | . 8 . 13 . 1 . 6 7 14 5 . 1 . 16 . . . 2 . 1 5 . Terminals 98 | . 8 . 15 . . . 7 7 8 5 15 . . 18 . . . . . 3 8 4 Fabricators 17 | . . . . . . . . . . 6 . . . . . . 1 4 . 5 1 . Repair Stations 12 | . . . 4 . . . . . . 3 1 . . . . . . . 2 . . 2 Recycling Units 6 | . . . . . . . . . 6 . . . . . . . . . . . . . Scanalyzers 14 | . . . 4 . . . . . . . . . . . 6 . . 4 . . . . Garrison Access 7 | . . . . . . . . . . 2 . . . 1 . . . . 3 1 . . Terminal Hacks 82 | . 2 . 4 . 1 . 3 4 27 1 9 . 25 3 . . . . . 2 1 . Record 50 | . . . 1 . . . . . 24 . . . 25 . . . . . . . . . Robot Analysis 8 | . 2 . 3 . . . 1 . 1 . 1 . . . . . . . . . . . Open Door 10 | . . . . . . . . 3 . 1 6 . . . . . . . . . . . Level Access Points 2 | . . . . . . . . . . . . . . 1 . . . . . 1 . . Branch Access Points 2 | . . . . . . . . 1 . . . . . 1 . . . . . . . . Garrison Index 1 | . . . . . . . . . . . . . . 1 . . . . . . . . Locate Traps 1 | . . . . . . . . . . . 1 . . . . . . . . . . . Recall Reinforcements 2 | . . . . . . . 1 . . . . . . . . . . . . . 1 . Zone Layout 3 | . . . . . . . 1 . . . 1 . . . . . . . . 1 . . Proto ID Catalog 1 | . . . . . 1 . . . . . . . . . . . . . . . . . Release Object 2 | . . . . . . . . . 2 . . . . . . . . . . . . . Fabricator Hacks 4 | . . . . . . . . . . 2 . . . . . . . 1 . 1 . . Load Schematic 1 | . . . . . . . . . . 1 . . . . . . . . . . . . Build 3 | . . . . . . . . . . 1 . . . . . . . 1 . 1 . . Repair Station Hacks 3 | . . . 3 . . . . . . . . . . . . . . . . . . . Scan Component 1 | . . . 1 . . . . . . . . . . . . . . . . . . . Repair 1 | . . . 1 . . . . . . . . . . . . . . . . . . . Refit 1 | . . . 1 . . . . . . . . . . . . . . . . . . . Recycling Unit Hacks . | . . . . . . . . . . . . . . . . . . . . . . . Scanalyzer 11 | . . . 3 . . . . . . . . . . . 5 . . 3 . . . . Insert Component 3 | . . . 1 . . . . . . . . . . . 1 . . 1 . . . . Analyze 6 | . . . 1 . . . . . . . . . . . 4 . . 1 . . . . Retrieve Study 2 | . . . 1 . . . . . . . . . . . . . . 1 . . . . Garrison Access Hacks 4 | . . . . . . . . . . 1 . . . 1 . . . . 1 1 . . Seal Access 4 | . . . . . . . . . . 1 . . . 1 . . . . 1 1 . . Unauthorized Hacks 24 | . . . 5 . . . 2 . 6 3 . . . 5 . . . 1 . 1 1 . Terminals 13 | . . . 5 . . . 2 . . . . . . 5 . . . . . . 1 . Track 2 | . . . . . . . 1 . . . . . . 1 . . . . . . . . Assimilate 4 | . . . . . . . . . . . . . . 3 . . . . . . 1 . Botnet 4 | . . . 4 . . . . . . . . . . . . . . . . . . . Operators 3 | . . . 1 . . . 1 . . . . . . 1 . . . . . . . . Fabricators 5 | . . . . . . . . . . 3 . . . . . . . 1 . 1 . . Prioritize 1 | . . . . . . . . . . 1 . . . . . . . . . . . . Liberate 4 | . . . . . . . . . . 2 . . . . . . . 1 . 1 . . Repair Stations . | . . . . . . . . . . . . . . . . . . . . . . . Recycling Units 6 | . . . . . . . . . 6 . . . . . . . . . . . . . Tunnel 6 | . . . . . . . . . 6 . . . . . . . . . . . . . Scanalyzers . | . . . . . . . . . . . . . . . . . . . . . . . Garrison Access . | . . . . . . . . . . . . . . . . . . . . . . . Data Cores Recovered 1 | . . . . . . . . . . . 1 . . . . . . . . . . . Used . | . . . . . . . . . . . . . . . . . . . . . . . Hacking Detections 38 | . 3 . 4 . . . . 2 3 6 5 . . 3 . . 1 1 2 2 4 2 Full Trace Events 4 | . . . . . . . . . 1 1 1 . . . . . . . . . . 1 Feedback Events . | . . . . . . . . . . . . . . . . . . . . . . . Feedback Blocked . | . . . . . . . . . . . . . . . . . . . . . . . Robot Schematics Acquired 3 | . . . . . . . . . . . . . . . . . . . . 3 . . Robots Built 2 | . . . . . . . . . . . . . . . . . . . . 2 . . Authchips . | . . . . . . . . . . . . . . . . . . . . . . . Time 152 | . . . . . . . . . . . . . . . . . . . . 152 . . Total Robot Build Rating 10 | . . . . . . . . . . . . . . . . . . . . 10 . . Part Schematics Acquired 5 | . . . 1 . . . . . . . . . . . 1 . . . . 3 . . Parts Built 4 | . . . . . . . . . . 2 . . . . . . . 2 . . . . Authchips . | . . . . . . . . . . . . . . . . . . . . . . . Time 267 | . . . . . . . . . . 128 . . . . . . . 139 . . . . Total Part Build Rating 34 | . . . . . . . . . . 16 . . . . . . . 18 . . . . Part Studies Acquired 2 | . . . 1 . . . . . . . . . . . . . . 1 . . . . Parts Repaired 1 | . . . 1 . . . . . . . . . . . . . . . . . . . Time 51 | . . . 51 . . . . . . . . . . . . . . . . . . . Parts Recycled . | . . . . . . . . . . . . . . . . . . . . . . . Recycled Matter . | . . . . . . . . . . . . . . . . . . . . . . . Retrieved Matter . | . . . . . . . . . . . . . . . . . . . . . . . Retrieved Components . | . . . . . . . . . . . . . . . . . . . . . . . Parts Scanalyzed 3 | . . . 1 . . . . . . . . . . . 1 . . 1 . . . . Part Schematics Acquired 2 | . . . 1 . . . . . . . . . . . 1 . . . . . . . Parts Damaged . | . . . . . . . . . . . . . . . . . . . . . . . Bothacking | -11 -10 -10 -9 -9 -9 -8 -8 -8 -8 -6 -6 -6 -6 -6 -5 -5 -5 -4 -3 -3 -2 -1 ------------ Run | Yrd Mat Min Mat Min Exi Min Mat Sto Rec Fac Ext Cet Arc Hub Fac Was Fac Fac Res Tes Res Acc Used RIF Installer . | . . . . . . . . . . . . . . . . . . . . . . . Robots Hacked . | . . . . . . . . . . . . . . . . . . . . . . . Non-combat . | . . . . . . . . . . . . . . . . . . . . . . . Combat . | . . . . . . . . . . . . . . . . . . . . . . . Robot Hacks Applied . | . . . . . . . . . . . . . . . . . . . . . . . Relay Couplers Released . | . . . . . . . . . . . . . . . . . . . . . . . Fabnet Peak Effective % . | . . . . . . . . . . . . . . . . . . . . . . . Robots Rewired 19 | . . . . . . . . . . . 19 . . . . . . . . . . . Allies Hacked . | . . . . . . . . . . . . . . . . . . . . . . . Hacks Repelled . | . . . . . . . . . . . . . . . . . . . . . . . Allies | -11 -10 -10 -9 -9 -9 -8 -8 -8 -8 -6 -6 -6 -6 -6 -5 -5 -5 -4 -3 -3 -2 -1 -------- Run | Yrd Mat Min Mat Min Exi Min Mat Sto Rec Fac Ext Cet Arc Hub Fac Was Fac Fac Res Tes Res Acc Total Allies 53 | . . . . . . . . 10 . 6 27 5 . 2 . . . . . 2 1 . Largest Group 16 | . . . . . . . . 10 10 9 13 16 7 1 . . . . . 2 1 . Highest-Rated Group 787 | . . . . . . . . 173 173 144 491 787 327 10 . . . . . 40 45 . Highest-Rated Ally 159 | . . . . . . . . 29 29 29 159 152 96 10 . . . . . 20 45 . Total Orders 2 | . . . . . . . . 2 . . . . . . . . . . . . . . EXPLORE 2 | . . . . . . . . 2 . . . . . . . . . . . . . . Ally Attacks 422 | . . . . . . . . . 56 103 175 69 19 . . . . . . . . . Total Damage 8951 | . . . . . . . . . 785 1337 4433 1939 457 . . . . . . . . . Kills 53 | . . . . . . . . . 7 11 25 9 1 . . . . . . . . . Allies Corrupted . | . . . . . . . . . . . . . . . . . . . . . . . Allies Melted . | . . . . . . . . . . . . . . . . . . . . . . . Intel | -11 -10 -10 -9 -9 -9 -8 -8 -8 -8 -6 -6 -6 -6 -6 -5 -5 -5 -4 -3 -3 -2 -1 ------- Run | Yrd Mat Min Mat Min Exi Min Mat Sto Rec Fac Ext Cet Arc Hub Fac Was Fac Fac Res Tes Res Acc Active Infowar (turns) 11934 | . . . 146 738 738 371 197 . . 3124 1365 327 . . . . . 792 1785 1089 543 719 Optics 2190 | . . . 146 738 738 371 197 . . . . . . . . . . . . . . . Sensors 9732 | . . . . . . . . . . 3124 1353 327 . . . . . 792 1785 1089 543 719 Terrain 2780 | . . . . . . . . . . 1351 1364 65 . . . . . . . . . . Robot Analysis Total 8 | . 2 . 3 . . . 1 . 1 . 1 . . . . . . . . . . . Derelict Logs Recovered 2 | . . . . 2 . . . . . . . . . . . . . . . . . . Drone Launches 2 | . . . . . . . . 2 . . . . . . . . . . . . . . Drone Recoveries . | . . . . . . . . . . . . . . . . . . . . . . . Exploration | -11 -10 -10 -9 -9 -9 -8 -8 -8 -8 -6 -6 -6 -6 -6 -5 -5 -5 -4 -3 -3 -2 -1 ------------- Run | Yrd Mat Min Mat Min Exi Min Mat Sto Rec Fac Ext Cet Arc Hub Fac Was Fac Fac Res Tes Res Acc Turns Passed 20452 | 83 842 222 1694 738 738 371 400 304 1674 3478 1365 417 292 748 727 831 529 804 1785 1097 543 770 Spaces Moved 12437 | 39 491 164 774 431 457 186 180 141 748 2004 666 197 150 535 654 434 616 579 790 1028 572 601 Core 44 | 6 1 . . . . . . 1 17 19 . . . . . . . . . . . . Treads 1966 | 33 199 . 536 431 457 186 124 . . . . . . . . . . . . . . . Legs 7467 | . . . . . . . . . 405 1763 492 197 150 535 568 . . 366 790 1028 572 601 Wheels 756 | . 291 164 238 . . . . . . 63 . . . . . . . . . . . . Hover 1682 | . . . . . . . . . . 159 174 . . . 86 434 616 213 . . . . Flight 522 | . . . . . . . 56 140 326 . . . . . . . . . . . . . Fastest Speed 42 | 50 80 105 105 160 160 160 150 150 119 50 61 61 75 85 64 54 54 42 60 60 60 60 Average Speed 98 | 154 127 105 143 160 160 160 170 156 157 104 70 61 78 85 82 63 54 72 80 60 60 64 Slowest Speed 1250 | 160 320 105 160 160 160 160 240 1000 850 1250 88 75 85 85 85 64 54 98 98 60 60 69 Overloaded Moves . | . . . . . . . . . . . . . . . . . . . . . . . Propulsion Burnouts . | . . . . . . . . . . . . . . . . . . . . . . . Robots Hopped 1 | . . . . . . . . . . . . . . . . . . . 1 . . . Potential Cave-ins 7 | . . . . . . . . . . . . . . 3 . . . 3 . 1 . . Cave-ins Triggered 1 | . . . . . . . . . . . . . . . . . . 1 . . . . Exploration Rate (%) 44 | 4 57 41 33 60 90 26 14 46 98 36 74 55 78 34 19 95 11 15 21 89 15 19 Regions Visited 22 Branch Regions 11 Pre-discovered Areas 8 | . . 1 . 1 . . . . 6 . . . . . . . . . . . . . Known Exits Taken 7 | . . . . . . . . 1 . 1 1 . . 1 . . . . 1 1 1 . Unknown Exits Taken 13 | 1 1 1 1 1 1 1 1 . 1 . . 1 1 . . . 1 1 . . . . Scrap Searched 2 | . . . . . . 2 . . . . . . . . . . . . . . . . Spaces Dug 86 | . . . . . . . . . 1 7 . . . 6 5 . 3 34 . 10 3 17 Terrain Destroyed 645 | . . . . . . . . . 1 80 1 . 9 207 142 . 14 46 4 100 10 31 Melee 27 | . . . . . . . . . 1 1 . . . . . . . . . 7 2 16 Projectile 217 | . . . . . . . . . . 10 . . 9 34 25 . 13 46 4 53 8 15 AOE 399 | . . . . . . . . . . 69 . . . 173 117 . . . . 40 . . Terrain Rammed . | . . . . . . . . . . . . . . . . . . . . . . . Walls Destroyed . | . . . . . . . . . . . . . . . . . . . . . . . Machines Disabled . | . . . . . . . . . . . . . . . . . . . . . . . Actions | -11 -10 -10 -9 -9 -9 -8 -8 -8 -8 -6 -6 -6 -6 -6 -5 -5 -5 -4 -3 -3 -2 -1 --------- Run | Yrd Mat Min Mat Min Exi Min Mat Sto Rec Fac Ext Cet Arc Hub Fac Was Fac Fac Res Tes Res Acc Total 19870 | 49 607 211 1286 466 467 261 276 231 1242 3325 1503 476 260 762 758 976 776 931 1898 1414 749 946 Wait 6113 | . 16 46 410 26 . 74 55 58 467 1166 476 257 59 178 55 535 115 302 1073 302 151 292 Move 12415 | 38 490 163 773 430 456 185 179 140 747 2003 665 196 149 535 654 433 615 577 787 1027 572 601 Hop 1 | . . . . . . . . . . . . . . . . . . . 1 . . . Pick Up 142 | 1 21 1 20 1 3 1 15 7 3 28 . 3 5 2 2 1 11 5 4 5 2 1 Fast Attach 54 | 5 9 . 4 . . . 2 5 1 13 1 2 2 . 1 . . . 3 5 . 1 Attach 51 | . . . 7 . . . 4 2 . 11 . 3 1 4 2 . 2 5 4 1 3 2 Detach 4 | . . . . . . . . . . 1 . 1 . . . . . 1 1 . . . Swap 22 | . 8 . 5 1 1 . 1 . . 1 . . 1 . . . . 1 . 3 . . Drop 145 | . 13 . 23 1 7 1 15 12 14 29 . 4 7 4 . . 2 2 3 6 1 1 Fire 519 | 5 50 1 42 7 . . . . . 52 55 10 36 39 44 7 22 37 22 45 14 31 Melee 78 | . . . . . . . 5 4 10 21 . . . . . . . . . 15 6 17 Ram 1 | . . . . . . . . . . . . . . . . . 1 . . . . . Kick . | . . . . . . . . . . . . . . . . . . . . . . . Crush 2 | . . . 2 . . . . . . . . . . . . . . . . . . . Escape Stasis 14 | . . . . . . . . . . . . . . . . . 8 1 . 5 . . Rewire 309 | . . . . . . . . 3 . . 306 . . . . . . . . . . . Trap . | . . . . . . . . . . . . . . . . . . . . . . . Miscellaneous . | . . . . . . . . . . . . . . . . . . . . . . . Route ------- -11/Scrapyard -10/Materials (discovered 4 exits: *Mat x2 / [*Min x2]) -10/Mines (discovered 2 exits: *Mat x2) -9/Materials (discovered 2 exits: *Mat / [*Min]) -9/Mines (discovered 2 exits: *Mat / *Exi) -9/Exiles (discovered 2 exits: [*Min x2]) -8/Mines -8/Materials (discovered 2 exits: Fac / *Sto) -8/Storage -8/Recycling -6/Factory (discovered 4 exits: *Fac x2 / [*Low] / *Ext) -6/Extension (discovered 3 exits: *Fac x2 / *Cet) -6/Cetus (discovered 2 exits: *Fac / *Arc) -6/Archives (discovered 3 exits: *Fac / *Hub x2) -6/Hub_04(d) (discovered 4 exits: *Fac x4) -5/Factory -5/Waste -5/Factory -4/Factory -3/Research -3/Testing -2/Research -1/Access History --------- Turn | Location | Event 16 | -11/Scrapyard | Discovered new exit (range 16) 84 | -11/Scrapyard | Entered Materials 176 | -10/Materials | Discovered new exit (range 16) 321 | -10/Materials | Build established: Mutant 414 | -10/Materials | Discovered new exit (range 4) 791 | -10/Materials | Discovered new exit (range 16) 859 | -10/Materials | Discovered new exit (range 5) 926 | -10/Materials | Entered Mines 1002 | -10/Mines | Discovered new exit (range 10) 1007 | -10/Mines | Learned location of Storage (-8) 1055 | -10/Mines | Found a damaged Exp. Sensor Array with a note attached 1057 | -10/Mines | Found Prototype Device 1087 | -10/Mines | Assembled infested the area 1087 | -10/Mines | Discovered new exit (range 14) 1092 | -10/Mines | Assisted by a Guerilla fighting off Assembled 1148 | -10/Mines | Entered Materials 1148 | -9/Materials | Evolved 2 slots: Propulsion x1, Utility x1 1204 | -9/Materials | Identified Exp. Sensor Array 1684 | -9/Materials | Central database locked down 1884 | -9/Materials | Build established: Scavenger-Mutant 2025 | -9/Materials | Repaired Imp. Assault Rifle 2206 | -9/Materials | Discovered new exit (range 16) 2676 | -9/Materials | Discovered new exit (range 5) 2842 | -9/Materials | Entered Mines 2872 | -9/Mines | Discovered new exit (range 16) 2891 | -9/Mines | Deemed a non-threat by the Exiles lab entrance 2891 | -9/Mines | Discovered new exit (range 5) 3102 | -9/Mines | Learned location of Zion (-7) 3120 | -9/Mines | Joined a pair of Derelicts in attacking an 0b10 outpost 3309 | -9/Mines | Learned 2 Materials zone layouts 3580 | -9/Mines | Entered Exiles 3601 | -9/Exiles | Discovered new exit (range 17) 3624 | -9/Exiles | Met 8R-AWN 3644 | -9/Exiles | Met EX-HEX 3696 | -9/Exiles | Met EX-BIN 3800 | -9/Exiles | Met EX-DEC 3852 | -9/Exiles | Visited The Gauntlet 4083 | -9/Exiles | Aligned with FarCom system 4084 | -9/Exiles | Given EX-Vault access code 4131 | -9/Exiles | Opened EX-Vault 4144 | -9/Exiles | Found Flying Fortress v7 4151 | -9/Exiles | Found YOLO Cannon 4159 | -9/Exiles | Found Longsword +1 4190 | -9/Exiles | Warned to stay clear of 0b10 Research branches 4204 | -9/Exiles | Exiles lab attacked by MAIN.C 4297 | -9/Exiles | Discovered new exit (range 15) 4318 | -9/Exiles | Stole three prototypes: Flying Fortress v7, YOLO Cannon, Longsword +1 4318 | -9/Exiles | Entered Mines 4643 | -8/Mines | Discovered new exit (range 8) 4689 | -8/Mines | Entered Materials 4689 | -8/Materials | Evolved 2 slots: Propulsion x1, Utility x1 4689 | -8/Materials | Discovered new exit (range 5) 4690 | -8/Materials | Identified exit to Factory 5089 | -8/Materials | Entered Storage 5091 | -8/Storage | FarCom data flow suspended 5104 | -8/Storage | Identified exit to Recycling 5254 | -8/Storage | Assisted by bots powering up and referring to "LRC-V3" 5359 | -8/Storage | Used back door to open Recycling access 5393 | -8/Storage | Entered Recycling 5393 | -8/Recycling | Accompanied by 10 allies 5558 | -8/Recycling | Build established: Commander-Mutant 5818 | -8/Recycling | Discovered new exit (range 5) 5890 | -8/Recycling | Scanned before Scraplab entrance 5914 | -8/Recycling | Entered Scraplab 5926 | -8/Recycling | Discovered new exit (range 3) 5938 | -8/Recycling | Angered Scraplab inhabitants 5952 | -8/Recycling | Found Prototype Device 5952 | -8/Recycling | Identified Scrap Engine 6612 | -8/Recycling | Build established: Commander-Construct 7067 | -8/Recycling | Entered Factory 7067 | -6/Factory | Accompanied by 9 allies 7067 | -6/Factory | Evolved 4 slots: Power x1, Utility x2, Weapon x1 7283 | -6/Factory | Lost 3 allies 7352 | -6/Factory | Fabricated Adv. Force Field? 7360 | -6/Factory | Build established: Commander-Mutant 7445 | -6/Factory | Discovered new exit (range 3) 7447 | -6/Factory | Identified exit to Factory 7986 | -6/Factory | Lost 4 allies 8189 | -6/Factory | Cargo convoy interrupted 8210 | -6/Factory | Discovered exit to Factory (range 2) 8240 | -6/Factory | Build established: Mutant 8448 | -6/Factory | Lost 7 parts (1p2n2u2w) 9926 | -6/Factory | Build established: Construct 10245 | -6/Factory | Discovered new exit (range 15) 10326 | -6/Factory | Discovered new exit (range 10) 10376 | -6/Factory | Identified exit to Extension 10545 | -6/Factory | Entered Extension 10587 | -6/Extension | Rescued a captive Derelict 10850 | -6/Extension | Rescued a captive Derelict 10859 | -6/Extension | Rescued a captive Derelict 10883 | -6/Extension | Rescued A7 11243 | -6/Extension | Spotted B-75 Beast 11256 | -6/Extension | Spotted B-75 Beast 11266 | -6/Extension | Discovered exit to Factory (range 17) 11280 | -6/Extension | Allies destroyed B-75 Beast 11288 | -6/Extension | Destroyed B-75 Beast 11503 | -6/Extension | Rescued a captive Derelict 11503 | -6/Extension | Rescued a captive Derelict 11536 | -6/Extension | Rescued a captive Derelict 11538 | -6/Extension | Rescued a captive Derelict 11635 | -6/Extension | Build established: Commander-Construct 11705 | -6/Extension | Lost 3 allies 11795 | -6/Extension | Disrupted transfer network 11835 | -6/Extension | Discovered exit to Factory (range 10) 11836 | -6/Extension | Discovered new exit (range 6) 11863 | -6/Extension | Identified exit to Cetus 11910 | -6/Extension | Entered Cetus 11910 | -6/Cetus | Accompanied by 13 allies (A7) 11915 | -6/Cetus | Acquired a Cetus Manufacturing Module code from A7 11958 | -6/Cetus | Spotted Cetus Guard 11967 | -6/Cetus | Allies destroyed Cetus Guard 11968 | -6/Cetus | Murdered A7 11970 | -6/Cetus | Extracted ID and sensor layout for unrecognized location from A7's data core 12018 | -6/Cetus | Started Cetus Manufacturing Module 12043 | -6/Cetus | Manufactured an Enhanced Grunt 12068 | -6/Cetus | Manufactured an Enhanced Grunt 12093 | -6/Cetus | Manufactured an Enhanced Grunt 12118 | -6/Cetus | Manufactured an Enhanced Grunt 12143 | -6/Cetus | Manufactured an Enhanced Grunt 12155 | -6/Cetus | Discovered new exit (range 16) 12231 | -6/Cetus | Spotted Cetus Guard 12231 | -6/Cetus | Spotted Cetus Guard 12238 | -6/Cetus | Spotted Cetus Guard 12238 | -6/Cetus | Allies destroyed Cetus Guard 12239 | -6/Cetus | Core integrity fell below 50% 12248 | -6/Cetus | Destroyed Cetus Guard 12251 | -6/Cetus | Destroyed Cetus Guard 12257 | -6/Cetus | Discovered exit to Factory (range 15) 12260 | -6/Cetus | Met Revision 17 12280 | -6/Cetus | Lost 9 allies 12327 | -6/Cetus | Entered Archives 12327 | -6/Archives | Accompanied by 7 allies 12395 | -6/Archives | Discovered exit to Factory (range 14) 12399 | -6/Archives | Lost 7 allies 12405 | -6/Archives | Unable to access archive contents 12413 | -6/Archives | Unable to access archive contents 12441 | -6/Archives | Discovered new exit (range 14) 12562 | -6/Archives | Discovered new exit (range 16) 12619 | -6/Archives | Entered Hub_04(d) 12650 | -6/Hub_04(d) | Build established: Construct 12937 | -6/Hub_04(d) | Garrison activated, responded to threat 13002 | -6/Hub_04(d) | Build established: Hacker-Construct 13025 | -6/Hub_04(d) | Core integrity fell below 20% 13224 | -6/Hub_04(d) | Network Hub disabled 13319 | -6/Hub_04(d) | First assault squad dispatched 13367 | -6/Hub_04(d) | Entered Factory 13367 | -5/Factory | Evolved 2 slots: Utility x2 13395 | -5/Factory | Discovered new exit (range 8) 13707 | -5/Factory | Build established: Scavenger-Construct 14094 | -5/Factory | Sucked down chute 14094 | -5/Factory | Entered Waste 14094 | -5/Waste | The area was eerily silent 14194 | -5/Waste | Discovered new exit (range 16) 14925 | -5/Waste | Entered Factory 15109 | -5/Factory | Discovered new exit (range 15) 15236 | -5/Factory | Build established: Construct 15454 | -5/Factory | Entered another Factory area 15454 | -4/Factory | Evolved 2 slots: Utility x2 15617 | -4/Factory | Fabricated Quantum Reactor? 16226 | -4/Factory | Crushed by falling debris 16233 | -4/Factory | Discovered new exit (range 12) 16258 | -4/Factory | Entered Research 16258 | -3/Research | Evolved 2 slots: Utility x1, Weapon x1 16458 | -3/Research | Revision forces began assault on 0b10 16513 | -3/Research | Met up with Revision 17++ 16873 | -3/Research | Discovered new exit (range 11) 16883 | -3/Research | Identified exit to Testing 16958 | -3/Research | Research terminal network offline 18043 | -3/Research | Entered Testing 18239 | -3/Testing | Unstable Terrabomb Derivative detonated 18265 | -3/Testing | Scanned by Researcher 18266 | -3/Testing | Fabricated R-10 Processor? 18407 | -3/Testing | Identified exit to Research 18608 | -3/Testing | Found Prototype Hackware 18631 | -3/Testing | Found Exp. Thermal Shield 19140 | -3/Testing | Entered Research 19140 | -2/Research | Evolved 2 slots: Utility x2 19643 | -2/Research | Spotted B-90 Cyclops 19680 | -2/Research | Discovered new exit (range 3) 19682 | -2/Research | Identified exit to Access 19683 | -2/Research | Entered Access 19683 | -1/Access | Evolved 2 slots: Utility x2 19970 | -1/Access | Build established: Tank 20216 | -1/Access | Spotted B-99 Colossus 20217 | -1/Access | Spotted B-99 Colossus 20366 | -1/Access | Spotted B-99 Colossus 20413 | -1/Access | Core integrity fell below 50% 20445 | -1/Access | Core integrity fell below 20% 20451 | -1/Access | System corruption reached 10% 20454 | -1/Access | Core destroyed Last Messages --------------- 20448_ Cld. Quantum-Antimatter Reactor core remains intact and functional. 20449_ Overheating: Adv. Force Field damaged (-11). 20449_ Overheating: Cycling KE Linear Construct/C damaged (-48). 20450_ Overheating: Cld. Quantum-Antimatter Reactor damaged (-18). 20450_ Knocked back. 20450_ Cld. Quantum-Antimatter Reactor destroyed. 20450_ Arm. Scrap Engine damaged due to network destabilization (-10). 20451_ Overheating: Energy bleed (-16). 20451_ Acquired 4 matter. 20452_ Overheating: Core damaged (-176). 20453_ Overheating: Exp. Thermal Shield damaged (-1). 20453_ R-10 Processor collects Adv. Heat Sink. 20454_ Overheating: Core damaged (-320). Map ----- +----------------------------------------------------+ | ?????????????????????????????????????????????????? | | ?????????????????????????????????????????????????? | | ??????????????????????????? ????" ??????????????? | | ?????????????????????????? """" ????????????? | | ????????????????????????? " ???????????? | | ???????????????????????? ""??????????? | | ????????????????????????? ???????????? | | ?????????????????????????? #???????????? | | ?????????????????????????? #???????????? | | ??????????????????????????? #???????????? | | ???????????????????????????# #???????????? | | ???????????????????????????# #???????????? | | ???????????????????######??# #???????????? | | ??????????????????## #??# #???????????? | | ???????????????????" #??# #???????????? | | ???????????????????# #### #???????????? | | ???????????????????# !#;B" #???????????? | | ???????????????????# **/pB ! #???????????? | | ???????????????????# *%*[!R######"+######????????? | | ???????????????????# !=!%#?# % #????????? | | ???????????????????# [p!#?# #????????? | | ???????????????????# # #?# ! ! #????????? | | ???????????????????###### #?# *|!% #????????? | | ????????????????????????# #?# !%% #????????? | | ????????????????????????# ### == #????????? | | ?????????? ???????????#@##" #?????? | | ????????? ?????????+ ##########"""""#### | | ????????? ????????###????????# | | ????????? ?????????????????##" #??? | | ????????? ?????????????????##"# #??? | | ????????? ????????????????## " =!! #??? | | ?????????# ##################""""!!! #? | | ?????????# # #"F !! #? | | ?????????# # #""" ###? | | ?????????# + #""" ? | | ?????????# # #""" | | ?????????# # #### | | ?????????# # #??# ^ "" | | ?????????# # #??# "" ? | | ?????????# #####+#############??# """"?" ?? | | ?????????# ##### ##?????????????# """"????? | | ?????????# #?????????????? ??????? | | ?????????# #?????????????? ???????? | | ?????????# #?????????????? ? ??????? | | ########## #?????????????? ??????????? | | "# ##### #???????????????????????????? | | ##+#???# #???????????????????????????? | | """" #??????# #???????????????????????????? | | """" #??????# #???????????????????????????? | | """" #??????# #???????????????????????????? | +----------------------------------------------------+ Best States ------------- Heat Dissipation 145 Energy Generation 65 Energy Capacity 1022 Matter Stores 300 Matter Capacity 300 Sight Range 18 Robot Scan Range 20 Terrain Scan Range 20 Terrain Scan Density 210 Base Temperature (-) 150 Armor Coverage 600 Resistance: KI 20 Resistance: TH 30 Resistance: EM 25 Utility Shielding 66 Weapon Cycling 25 Phase Shifting 15 Evasion (%) 78 Targeting Accuracy 12 Melee Accuracy 8 Recoil Reduction 4 Offensive Hacking 24 Defensive Hacking 12 Item Schematics ----------------- Exp. Sensor Array | -9/Materials | Scanalyzed Centrium Medium Armor Plating | -5/Factory | Scanalyzed Exp. Power Amplifier | -3/Testing | Archive Imp. Matter Neutralizer | -3/Testing | Archive Exp. Thermal Shield | -3/Testing | Archive Robot Schematics ------------------ G-67 Veteran | -3/Testing | Archive M-30 Cleanser | -3/Testing | Archive R-10 Processor | -3/Testing | Archive Fabricated ------------ Adv. Force Field | x2 | -6/Factory | Preloaded Quantum Reactor | x2 | -4/Factory | Preloaded R-10 Processor | x2 | -3/Testing | Preloaded Repaired ---------- Imp. Assault Rifle | 60% | -9/Materials Studied --------- VTOL Module | -9/Materials | Hacked Imp. Carbon-fiber Leg | -4/Factory | Hacked Alien Tech Used ----------------- None Achievements -------------- DATA ERROR: Steam Global Achievement% DIY Cooler Ew, Corruption Express Service Fitting Room For Emergencies Only Heavy Suspicion I Laugh At Your Crits Item+ Jackpot Morally Flexible Network Effect Not So Scrappy Organ Harvest Overwhelming Recruitment Drive Scrappetite Sixth Sense Spot Them First Sprinter Tailor-made There's More Where That Came From Throw Away The Key Well Done You May Approach The Wall Challenges ------------ None Game ------ Seed SpacefoldMasterDrillbomb Manual? 0 Play Time 02:48:22 Cumulative 468.0 hours Start 2025.10.21 @ 20:55:00 End 2025.10.22 @ 00:09:20 Sessions 1 Manual Loads 0 Difficulty Rogue Special Mode None Game No. 798 Rogue 643 Adventurer 148 Explorer 7 Win Type - Total 22 Types 17/1/3/1/0/0/0/0/0/0 Lore% 63 Gallery% 75 Achievement% 45 Wizard Run 0 Options --------- Layout 1 ASCII 0 Keyboard 0 Movement Numpad Keybinds 0 Fullscreen 2 Font 24/Smallcaps Map View 50x40 Zoom Use 0% Tactical HUD 1 Map Filters NONE Filters NONE Steam 1 RUN: 05c53123-b385-43f1-bc88-c57a71d32579